bitfinex-derivatives/quotes_ETHF0:USTF0_20250107
["timestamp","ask_amount","ask_price","bid_price","bid_amount"]
[1736289029000,0.29643,3374.4,3373.9,5.2745]
[1736289029187,3.2078,3374.8,3373.9,5.2745]
[1736289029389,0.29643,3374.3,3374.0,0.29645]
[1736289029585,0.29643,3374.3,3373.7,3.2078]
[1736289029586,3.2078,3374.3,3373.7,3.2078]
[1736289029790,0.29648,3373.7,3373.4,0.2965]
[1736289030404,2.39430594,3374.1,3373.3,7.6291]
[1736289030702,0.29651,3373.4,3373.3,7.6291]
[1736289032193,1.273,3373.4,3372.7,3.2078]
[1736289032396,5.7881,3373.3,3372.7,3.2078]
[1736289032603,0.29654,3373.1,3372.8,0.29656]
[1736289032802,5.7881,3373.3,3372.8,0.29656]
[1736289033098,0.29654,3373.1,3372.8,0.29656]
[1736289033294,0.29654,3373.1,3372.8,0.29655]
[1736289033499,0.29654,3373.1,3372.7,3.2078]
[1736289033500,3.50432,3373.3,3373.0,0.29654]
[1736289033702,3.2078,3373.3,3372.7,3.2078]
[1736289033895,0.29648,3373.8,3373.5,0.29649]
[1736289034094,0.29647,3373.9,3373.6,0.29648]
[1736289034296,0.29648,3373.8,3373.6,0.29649]
[1736289034499,0.29647,3373.8,3373.5,0.29649]
[1736289034688,4.4788,3374.1,3373.3,7.7977]
[1736289034897,0.29648,3373.8,3373.6,0.29649]
[1736289035490,0.29648,3373.8,3373.3,7.7977]
[1736289035902,3.2078,3374.1,3373.3,7.7977]
[1736289036097,3.2078,3374.1,3373.4,0.74127]
[1736289036302,0.29644,3374.2,3374.1,0.29644]
[1736289036506,3.66530594,3374.4,3373.6,3.2078]
[1736289036806,0.29646,3373.9,3373.8,0.29646]
[1736289037104,0.29646,3374.0,3373.9,0.29646]
[1736289037305,0.29646,3374.0,3373.8,0.29647]
[1736289037510,0.29646,3374.0,3373.9,0.29646]
[1736289037900,0.29646,3373.9,3373.8,0.29647]
[1736289038103,0.29646,3374.0,3373.8,0.29646]
[1736289038299,2.39430594,3374.4,3373.8,0.29646]
[1736289038904,0.29646,3374.0,3373.8,0.29646]
[1736289039707,0.29645,3374.0,3373.7,0.29648]
[1736289039908,0.29645,3374.0,3373.8,0.29646]
[1736289040109,0.29645,3374.0,3373.9,0.29646]
[1736289040312,7.61415594,3374.5,3373.6,3.2078]
[1736289040313,6.87310594,3374.5,3373.6,3.2078]
[1736289040502,0.29646,3374.0,3373.8,0.29647]
[1736289041505,0.29645,3374.1,3373.9,0.29646]
[1736289042210,1.56742,3374.4,3373.9,0.29646]
[1736289042401,0.29645,3374.0,3373.9,0.29646]
[1736289042605,0.29645,3374.1,3373.6,3.2078]
[1736289042807,3.2078,3374.5,3374.0,3.2078]
[1736289043001,3.2078,3374.5,3374.4,0.29642]
[1736289043419,5.773,3375.3,3375.0,0.29637]
[1736289043607,0.29635,3375.2,3375.0,0.29637]
[1736289043911,0.29635,3375.2,3374.2,0.74108]
[1736289043912,2.39430594,3375.1,3373.9,3.94895]
[1736289044211,2.39430594,3375.1,3374.5,2.3993]
[1736289044212,3.50418,3374.9,3374.5,2.3993]
[1736289044511,3.2078,3374.9,3374.6,0.2964]
[1736289044709,0.2964,3374.6,3374.5,2.6957]
[1736289044909,2.39430594,3375.1,3374.6,0.2964]
[1736289045114,2.39430594,3375.1,3374.5,2.3993]
[1736289045304,0.46971231,3375.5,3374.9,3.2078]
[1736289045506,0.46971231,3375.5,3375.0,2.404]
[1736289045723,0.29633,3375.5,3375.3,0.29634]
[1736289046210,3.2078,3375.8,3375.1,2.6149]
[1736289046512,3.2078,3375.8,3375.3,0.29634]
[1736289046714,0.29633,3375.5,3375.3,0.29634]
[1736289046908,3.2078,3375.8,3375.2,2.3639]
[1736289047211,0.29634,3375.3,3375.2,2.66025]
[1736289047608,0.29633,3375.4,3375.3,0.29634]
[1736289047913,0.29633,3375.5,3375.4,0.29633]
[1736289048512,2.5652,3375.7,3375.2,2.3639]
[1736289048711,0.29634,3375.4,3375.3,0.29634]
[1736289049103,2.5652,3375.7,3375.2,2.3639]
[1736289049411,0.29634,3375.3,3375.2,2.3639]
[1736289049612,0.29631,3375.6,3375.2,2.66024]
[1736289049814,0.29634,3375.3,3375.2,2.3639]
[1736289050013,0.29634,3375.3,3375.2,2.66025]
[1736289050212,0.29634,3375.4,3375.2,2.66024]
[1736289050408,0.29634,3375.4,3375.3,0.29634]
[1736289050714,0.29633,3375.5,3375.3,0.29634]
[1736289051913,0.29632,3375.5,3375.3,0.29634]
[1736289053409,2.5652,3375.7,3375.2,2.3639]
[1736289053916,0.29633,3375.5,3375.3,0.29633]
[1736289054103,3.2078,3375.8,3375.2,2.3639]
[1736289054303,3.2078,3375.8,3375.5,0.29632]
[1736289054504,0.2963,3375.7,3375.5,0.29632]
[1736289054710,3.2078,3375.8,3375.6,2.5066]
[1736289055009,0.2963,3375.7,3375.6,2.80291]
[1736289055411,0.2963,3375.7,3375.6,2.5066]
[1736289055815,2.28469533,3376.0,3375.6,2.5066]
[1736289056120,2.28469533,3375.9,3375.8,0.2963]
[1736289056614,2.58098533,3375.9,3375.8,0.2963]
[1736289056808,2.28469533,3375.9,3375.7,0.2963]
[1736289057008,0.2963,3375.8,3375.6,2.80291]
[1736289057211,2.58098533,3375.9,3375.7,0.2963]
[1736289057412,0.29629,3375.9,3375.7,0.2963]
[1736289057615,0.29629,3375.9,3375.8,2.4361]
[1736289058023,3.2078,3376.2,3375.8,2.7324]
[1736289058313,0.29629,3376.0,3375.9,2.4395]
[1736289058716,0.29629,3376.0,3375.9,2.73579]
[1736289059117,2.58095533,3376.2,3376.1,0.29627]
[1736289059325,2.58096533,3376.2,3376.0,0.29627]
[1736289059615,2.28469533,3376.2,3376.1,0.29627]
[1736289059917,2.28469533,3376.2,3375.9,2.4395]
[1736289060121,0.29628,3376.0,3375.9,2.73578]
[1736289060314,0.29628,3376.0,3375.9,2.4395]
[1736289060516,2.58096533,3376.1,3376.0,0.29628]
[1736289060916,2.28469533,3376.1,3376.0,0.29628]
[1736289062021,3.427043,3376.2,3376.1,0.29627]
[1736289062515,4.56939066,3376.4,3376.3,0.29625]
[1736289063121,2.30327472,3376.4,3376.3,0.29625]
[1736289064215,3.2078,3376.6,3376.3,0.29625]
[1736289064216,4.56939066,3376.8,3376.3,3.2078]
[1736289064411,4.56939066,3376.8,3376.7,0.29622]
[1736289064716,4.56939066,3377.2,3376.7,3.2078]
[1736289065011,0.29621,3376.8,3376.7,3.2078]
[1736289065414,0.29628,3376.0,3375.8,0.29629]
[1736289065617,3.94842,3376.4,3375.6,5.60210594]
[1736289065921,0.2963,3375.7,3375.6,3.2078]
[1736289066122,0.2963,3375.7,3375.6,3.50411]
[1736289066313,0.2963,3375.7,3375.6,3.2078]
[1736289067119,0.2963,3375.7,3375.6,3.50411]
[1736289067319,0.2963,3375.8,3375.6,3.2078]
[1736289067521,0.2963,3375.8,3375.7,0.2963]
[1736289067819,0.29629,3375.9,3375.7,0.2963]
[1736289068019,0.29629,3375.9,3375.6,3.2078]
[1736289068225,0.29629,3375.9,3375.7,0.2963]
[1736289068425,2.3956,3376.3,3375.6,5.60210594]
[1736289068625,0.2963,3375.8,3375.6,5.60210594]
[1736289068819,0.2963,3375.8,3375.6,5.89841594]
[1736289069617,0.29628,3376.0,3375.6,5.60210594]
[1736289069824,2.3956,3376.3,3375.6,5.60210594]
[1736289070127,0.29628,3376.0,3375.8,0.29629]
[1736289070331,0.29629,3375.9,3375.8,0.29629]
[1736289071620,0.29629,3375.9,3375.7,0.2963]
[1736289071819,0.29629,3375.9,3375.6,5.60210594]
[1736289072020,0.29629,3375.9,3375.8,0.2963]
[1736289072621,2.3956,3376.3,3375.8,0.2963]
[1736289073122,0.29628,3376.0,3375.9,0.29628]
[1736289074125,2.3956,3376.3,3375.9,0.29628]
[1736289074327,2.3956,3376.3,3375.6,6.34288594]
[1736289074519,2.69186,3376.3,3376.1,0.29626]
[1736289074718,2.3956,3376.3,3376.2,0.29626]
[1736289075124,2.69186,3376.3,3376.2,0.29626]
[1736289075324,2.69186,3376.3,3376.1,0.29626]
[1736289075521,0.29626,3376.2,3376.1,0.29626]
[1736289075921,2.3956,3376.3,3376.2,0.29626]
[1736289076325,2.69186,3376.3,3376.1,0.29626]
[1736289076524,2.3956,3376.3,3376.1,0.29626]
[1736289077028,2.69186,3376.3,3376.1,0.29626]
[1736289077824,2.69186,3376.3,3376.2,0.29626]
[1736289078226,2.3956,3376.3,3376.2,0.29626]
[1736289078622,2.69185,3376.3,3376.2,0.29626]
[1736289080624,2.3956,3376.3,3376.2,0.29626]
[1736289080818,2.69185,3376.3,3376.2,0.29626]
[1736289081417,2.3956,3376.3,3376.2,0.29626]
[1736289081817,2.69185,3376.3,3376.2,0.29626]
[1736289083127,2.3956,3376.3,3376.2,0.29626]
[1736289083626,2.69185,3376.3,3376.2,0.29626]
[1736289084128,2.3956,3376.3,3376.2,0.29626]
[1736289084329,2.69185,3376.3,3376.2,0.29626]
[1736289084833,2.3956,3376.3,3376.2,0.29626]
[1736289085231,2.69185,3376.3,3376.2,0.29626]
[1736289085529,2.3956,3376.3,3376.2,0.29626]
[1736289085730,2.69185,3376.3,3376.2,0.29626]
[1736289086530,2.3956,3376.3,3376.2,0.29626]
[1736289086832,4.56939066,3376.6,3376.5,0.29623]
[1736289087027,8.91953833,3376.8,3376.6,0.29622]
[1736289087028,5.71173833,3376.7,3376.6,0.29622]
[1736289087921,5.71173833,3376.7,3376.6,2.64142]
[1736289088120,6.854086,3377.2,3377.1,0.29618]
[1736289089034,4.62424895,3377.3,3377.2,0.29617]
[1736289090228,2.4249,3377.5,3376.9,5.60210594]
[1736289090424,2.4249,3377.5,3377.4,0.29615]
[1736289091941,2.86916541,3377.5,3377.4,0.29615]
[1736289093031,2.4249,3377.5,3377.4,0.29615]
[1736289093629,6.90484895,3377.8,3377.3,3.2078]
[1736289093825,0.29613,3377.7,3377.6,0.29614]
[1736289094033,0.29613,3377.7,3377.3,3.2078]
[1736289094233,0.29613,3377.7,3377.6,0.29614]
[1736289095336,0.7403843,3377.7,3377.6,0.29614]
[1736289095537,0.4442543,3377.7,3377.6,0.29614]
[1736289096331,0.7403843,3377.7,3377.6,0.29614]
[1736289098536,0.29613,3377.7,3377.6,0.29614]
[1736289098930,2.57673,3377.8,3377.7,0.29613]
[1736289099129,0.29614,3377.7,3377.6,0.29614]
[1736289099436,0.29614,3377.6,3377.5,0.29614]
[1736289100034,0.29613,3377.7,3377.6,0.29614]
[1736289100534,0.29613,3377.7,3377.6,0.29613]
[1736289100731,0.29614,3377.6,3377.5,0.29614]
[1736289100933,0.29614,3377.6,3377.3,3.2078]
[1736289100934,0.29615,3377.5,3377.4,0.29615]
[1736289101239,0.29615,3377.6,3377.4,0.29615]
[1736289102137,0.29615,3377.5,3377.4,0.29615]
[1736289102439,0.29615,3377.6,3377.4,0.29615]
[1736289102940,0.29615,3377.6,3377.5,0.29615]
[1736289104841,2.2806,3377.8,3377.3,3.2078]
[1736289105041,2.57673,3377.8,3377.7,0.29613]
[1736289105244,0.29614,3377.6,3377.4,0.29615]
[1736289105541,0.29614,3377.6,3377.5,0.29615]
[1736289109741,2.2806,3377.8,3377.3,3.2078]
[1736289109938,0.29613,3377.7,3377.6,0.29613]
[1736289110332,0.29613,3377.7,3377.3,3.2078]
[1736289110635,0.29614,3377.6,3377.5,0.29614]
[1736289111136,0.29613,3377.7,3377.6,0.29613]
[1736289112037,0.29613,3377.8,3377.7,0.29612]
[1736289112643,7.08224895,3378.0,3377.3,3.94821]
[1736289112943,7.08224895,3378.0,3377.4,0.74039]
[1736289113143,7.08224895,3378.0,3377.3,3.94821]
[1736289113345,0.29612,3377.8,3377.7,0.29612]
[1736289114039,7.08224895,3378.0,3377.9,0.29611]
[1736289114040,7.37834895,3378.0,3377.9,0.29611]
[1736289114240,7.08224895,3378.0,3377.9,0.29611]
[1736289114439,7.37834895,3378.0,3377.9,0.29611]
[1736289114942,4.62424895,3378.0,3377.9,0.29611]
[1736289115138,4.62424895,3378.1,3377.8,4.5055]
[1736289115344,4.62424895,3378.1,3378.0,0.2961]
[1736289116935,2.71568,3378.3,3378.2,0.29608]
[1736289118145,0.2961,3378.2,3378.1,0.29609]
[1736289119543,0.7402857,3378.2,3378.1,0.29609]
[1736289120347,0.7402657,3378.2,3378.1,0.29609]
[1736289121241,0.4441857,3378.2,3378.1,0.29609]
[1736289121444,0.7402657,3378.2,3378.1,0.29609]
[1736289121742,0.4441857,3378.2,3378.1,0.29609]
[1736289122852,0.4441857,3378.2,3378.1,3.50389]
[1736289123557,3.77264304,3378.6,3378.1,3.2078]
[1736289123751,3.47659304,3378.6,3378.3,2.39430594]
[1736289123952,3.47659304,3378.6,3378.5,0.29606]
[1736289125154,3.92077874,3378.7,3378.6,0.29605]
[1736289125351,3.92077874,3378.7,3378.6,2.69035594]
[1736289127151,4.62424895,3378.9,3378.6,2.69035594]
[1736289127152,3.92077874,3378.9,3378.8,0.29603]
[1736289128656,4.21679874,3378.9,3378.8,0.29603]
[1736289128853,6.15291304,3379.0,3378.7,0.29604]
[1736289129060,6.15291304,3379.0,3378.8,0.29602]
[1736289129951,3.47659304,3379.0,3378.9,0.29602]
[1736289130356,4.62424895,3379.1,3379.0,0.29601]
[1736289131052,4.62424895,3379.1,3379.0,4.98201]
[1736289131755,3.47765439,3379.2,3379.1,0.29601]
[1736289133052,3.9216924,3379.3,3379.2,0.296]
[1736289133954,3.9216924,3379.3,3379.2,2.69030594]
[1736289134860,3.47765439,3379.3,3379.2,2.69030594]
[1736289136459,3.9216227,3379.7,3379.6,0.29596]
[1736289136661,3.9216227,3379.7,3379.6,3.50376]
[1736289137260,3.9216227,3379.7,3379.6,7.78396]
[1736289137661,2.3374,3379.8,3379.7,0.29595]
[1736289137857,3.47765439,3380.0,3379.9,0.29594]
[1736289139266,5.69675439,3380.3,3380.2,0.29591]
[1736289139957,5.69675439,3380.3,3380.2,4.37131]
[1736289140553,3.47765439,3380.3,3380.2,4.37131]
[1736289140954,1.9334,3380.6,3380.5,0.29588]
[1736289141958,3.47765439,3380.7,3380.6,0.29587]
[1736289142360,5.40335439,3381.0,3380.6,5.2032]
[1736289142568,5.40335439,3381.0,3380.9,2.69015594]
[1736289144159,1.9257,3381.0,3380.9,2.69015594]
[1736289144364,2.0292,3381.3,3381.2,0.29582]
[1736289144565,2.0292,3381.3,3381.2,2.69012594]
[1736289145264,1.9257,3381.6,3381.5,0.2958]
[1736289145461,3.9689,3381.6,3381.5,0.2958]
[1736289147362,3.9689,3381.6,3381.5,2.69010594]
[1736289147764,1.9257,3381.6,3381.5,2.69010594]
[1736289149267,2.0432,3381.9,3381.5,2.69010594]
[1736289149568,2.0432,3381.9,3381.8,0.29577]
[1736289150370,1.9425,3382.0,3381.6,2.0637]
[1736289150570,1.9425,3382.0,3381.9,0.29576]
[1736289153971,2.0267,3382.3,3381.9,3.2078]
[1736289154271,4.1723,3382.6,3382.2,2.39430594]
[1736289154474,4.1723,3382.6,3382.5,0.29571]
[1736289154673,3.8766,3382.6,3382.2,2.39430594]
[1736289154863,3.8766,3382.6,3381.8,0.73942]
[1736289154864,3.8766,3382.6,3381.8,2.39430594]
[1736289155070,3.8766,3382.6,3381.9,0.29576]
[1736289155071,0.29575,3382.0,3381.9,0.29576]
[1736289155370,0.29575,3382.0,3381.8,2.39430594]
[1736289155371,5.60210594,3382.3,3381.3,3.2078]
[1736289155575,3.94727,3381.7,3381.0,2.39430594]
[1736289155874,0.29583,3381.2,3381.0,2.69013594]
[1736289156074,2.67499,3381.6,3381.0,2.39430594]
[1736289156279,1.47901,3381.5,3380.4,2.63033986]
[1736289156470,3.2078,3381.1,3380.4,2.39430594]
[1736289156666,0.29587,3380.7,3380.5,0.29588]
[1736289156861,5.9479,3381.0,3380.5,0.29588]
[1736289157068,0.29588,3380.6,3380.4,2.39430594]
[1736289157275,0.73963,3380.9,3380.1,2.39430594]
[1736289157467,0.73963,3380.9,3380.1,0.29591]
[1736289157667,9.1557,3381.0,3379.8,3.44359788]
[1736289157668,0.2959,3380.3,3379.8,3.44359788]
[1736289157869,0.29592,3380.1,3379.8,3.50374]
[1736289158174,3.2078,3380.6,3379.8,3.50374]
[1736289158175,0.29594,3379.9,3379.8,3.2078]
[1736289158376,0.29596,3379.7,3379.5,2.39430594]
[1736289158574,3.2078,3379.7,3379.2,0.23728489]
[1736289158870,0.296,3379.2,3378.8,3.50383]
[1736289159070,3.13417594,3379.8,3378.6,2.39430594]
[1736289159071,1.9452,3379.1,3378.6,2.39430594]
[1736289159275,1.9452,3379.1,3378.5,0.23723769]
[1736289159276,0.29603,3378.9,3378.5,0.29605]
[1736289159679,1.9452,3379.1,3378.4,4.12468031]
[1736289159877,0.29606,3378.6,3378.2,3.2078]
[1736289160076,0.29606,3378.5,3378.2,3.2078]
[1736289160581,3.2078,3378.7,3378.0,2.39430594]
[1736289160582,0.29607,3378.4,3378.0,2.39430594]
[1736289160768,3.2078,3378.7,3377.8,3.50391]
[1736289160974,0.29608,3378.3,3377.9,0.29611]
[1736289161277,0.29608,3378.3,3377.8,3.50391]
[1736289161571,5.1328,3378.7,3377.8,3.2078]
[1736289161777,0.29611,3378.0,3377.8,3.2078]
[1736289162375,1.9952,3378.2,3377.8,3.2078]
[1736289162574,0.2961,3378.1,3377.8,3.2078]
[1736289162781,0.29611,3378.0,3377.8,3.2078]
[1736289163084,0.29609,3378.1,3377.8,3.2078]
[1736289164279,1.9952,3378.2,3377.8,3.2078]
[1736289164678,0.29611,3378.0,3377.8,3.2078]
[1736289164878,0.29611,3377.9,3377.8,3.2078]
[1736289165078,0.29613,3377.8,3377.3,3.50396]
[1736289165383,1.9952,3378.2,3377.4,0.29615]
[1736289165384,3.50391,3377.9,3377.4,0.29615]
[1736289165583,0.29612,3377.8,3377.3,3.50396]
[1736289165884,0.29613,3377.7,3377.3,3.2078]
[1736289167782,0.29614,3377.6,3377.3,3.2078]
[1736289168484,0.29615,3377.5,3377.3,3.2078]
[1736289173087,3.2078,3377.9,3377.3,3.2078]
[1736289173584,3.2078,3377.9,3377.6,0.29613]
[1736289173785,3.2078,3377.9,3377.3,3.2078]
[1736289173786,3.50391,3377.9,3377.3,3.2078]
[1736289173983,3.50391,3377.9,3377.5,0.29614]
[1736289174783,0.29612,3377.8,3377.5,0.29614]
[1736289174985,0.29612,3377.8,3377.4,0.29615]
[1736289175187,3.2078,3377.9,3377.3,3.2078]
[1736289175385,3.50392,3377.9,3377.6,0.29614]
[1736289176386,3.2078,3377.9,3377.3,3.2078]
[1736289176790,0.29612,3377.8,3377.5,0.29614]
[1736289177887,3.2078,3377.9,3377.4,0.29615]
[1736289178093,3.2078,3377.9,3377.3,3.2078]
[1736289178294,0.29613,3377.7,3377.4,0.29615]
[1736289179695,0.29613,3377.7,3377.3,3.2078]
[1736289180086,0.29613,3377.7,3377.4,0.29615]
[1736289180390,0.29612,3377.8,3377.5,0.29614]
[1736289180883,3.50392,3377.9,3377.5,0.29614]
[1736289181389,0.29612,3377.8,3377.5,0.29614]
[1736289182295,0.29612,3377.8,3377.6,0.29614]
[1736289182484,0.29612,3377.8,3377.3,3.2078]
[1736289182689,0.29612,3377.8,3377.5,0.29614]
[1736289182889,0.29612,3377.8,3377.6,0.29614]
[1736289183590,3.50392,3377.9,3377.4,0.29615]
[1736289183794,0.29612,3377.8,3377.6,0.29613]
[1736289184993,3.2078,3377.9,3377.3,3.2078]
[1736289185193,0.29612,3377.8,3377.6,0.29613]
[1736289185896,3.50392,3377.9,3377.7,0.29612]
[1736289186084,0.29612,3377.8,3377.6,0.29613]
[1736289188492,0.29612,3377.8,3377.3,3.2078]
[1736289188795,0.29612,3377.8,3377.7,0.29613]
[1736289188997,0.29612,3377.8,3377.6,0.29613]
[1736289189800,3.2078,3377.9,3377.3,3.2078]
[1736289190492,3.50392,3377.9,3377.7,0.29612]
[1736289190692,0.29613,3377.8,3377.6,0.29613]
[1736289191799,3.2078,3377.9,3377.5,0.29614]
[1736289191800,0.29613,3377.7,3377.5,0.29614]
[1736289191989,3.2078,3377.9,3377.6,0.29613]
[1736289192193,0.29613,3377.7,3377.6,0.29613]
[1736289192592,0.29613,3377.8,3377.6,0.29613]
[1736289193800,0.74026,3378.1,3377.6,0.29613]
[1736289193995,0.29612,3377.9,3377.7,0.29612]
[1736289194195,0.29612,3377.8,3377.7,0.29612]
[1736289194592,5.203,3378.2,3377.5,0.74036]
[1736289194898,0.29611,3378.0,3377.8,0.29611]
[1736289195097,0.29611,3378.0,3377.5,1.03652]
[1736289195301,0.29611,3378.0,3377.8,0.29611]
[1736289195601,0.29611,3377.9,3377.8,0.29611]
[1736289196304,5.203,3378.2,3377.4,6.34248594]
[1736289196601,0.29611,3377.9,3377.8,0.29612]
[1736289197103,0.29611,3378.0,3377.9,0.2961]
[1736289197903,0.29611,3377.9,3377.8,0.29611]
[1736289199300,0.74024,3378.1,3377.4,3.2078]
[1736289199605,0.29615,3377.5,3377.4,3.50395]
[1736289200296,0.29615,3377.5,3377.4,3.2078]
[1736289200499,0.29615,3377.5,3377.4,3.50395]
[1736289202798,0.29615,3377.5,3377.4,3.2078]
[1736289203403,0.29615,3377.5,3377.4,3.50395]
[1736289204704,5.36466145,3377.5,3377.4,3.2078]
[1736289205907,11.1946538,3377.5,3377.4,3.2078]
[1736289207605,5.41119275,3377.5,3377.4,3.2078]
[1736289220107,5.41119275,3377.5,3377.4,3.50395]
[1736289221016,5.41119275,3377.5,3377.4,0.29615]
[1736289221221,0.29616,3377.4,3377.3,0.29616]
[1736289222119,5.41120275,3377.4,3377.3,0.29616]
[1736289223619,5.11504275,3377.4,3377.2,1.9853]
[1736289223820,0.29619,3377.0,3376.8,0.2962]
[1736289224015,0.2962,3376.9,3376.7,7.80101421]
[1736289224219,0.29621,3376.9,3376.8,0.2962]
[1736289224423,2.39430594,3377.1,3376.7,7.80101421]
[1736289224623,0.29621,3376.8,3376.7,8.09722421]
[1736289224825,0.29621,3376.8,3376.7,7.80101421]
[1736289225124,2.69051594,3376.8,3376.7,4.59321421]
[1736289225525,0.29624,3376.4,3376.3,3.50405]
[1736289226425,0.29624,3376.4,3376.3,3.2078]
[1736289227018,11.22634812,3376.4,3376.3,3.2078]
[1736289227421,13.23334812,3376.4,3376.3,3.2078]
[1736289228523,0.29626,3376.2,3376.1,1.9434]
[1736289229227,7.12204275,3376.4,3375.9,0.29628]
[1736289229424,1.8612,3376.3,3375.8,5.1786]
[1736289229627,0.29627,3376.1,3376.0,0.29627]
[1736289230027,7.12204275,3376.4,3375.8,5.1786]
[1736289230230,7.12204275,3376.4,3375.8,5.91934]
[1736289230531,5.08478382,3376.1,3375.8,5.91934]
[1736289230722,5.08478382,3376.1,3376.0,0.29628]
[1736289232934,0.4442625,3376.1,3376.0,0.29628]
[1736289233128,7.80765165,3376.4,3375.8,1.9708]
[1736289233328,0.29627,3376.2,3376.0,0.29627]
[1736289234825,0.29627,3376.1,3375.9,0.29628]
[1736289235723,2.007,3376.4,3375.8,1.9708]
[1736289235922,2.007,3376.4,3375.8,2.26709]
[1736289235923,0.29628,3376.0,3375.8,2.26709]
[1736289236130,0.29628,3376.1,3375.9,0.29629]
[1736289236324,2.007,3376.4,3375.8,1.9708]
[1736289236525,0.29629,3375.9,3375.8,1.9708]
[1736289236725,2.74762,3376.4,3375.8,2.2671]
[1736289236926,0.29629,3375.9,3375.8,1.9708]
[1736289237130,2.007,3376.4,3375.8,1.9708]
[1736289237331,1.844,3376.9,3376.1,3.2078]
[1736289237537,8.10561437,3377.0,3376.9,0.2962]
[1736289237930,9.26355928,3377.2,3377.1,0.29618]
[1736289238127,10.4215042,3377.4,3377.1,3.2078]
[1736289238326,11.57944911,3377.6,3377.5,0.29615]
[1736289238536,3.2078,3378.7,3378.1,0.29609]
[1736289238836,0.29605,3378.6,3378.3,0.29607]
[1736289239129,3.2078,3378.7,3377.9,3.2078]
[1736289239334,3.2078,3378.7,3378.4,0.29607]
[1736289239631,1.844,3378.9,3378.4,0.29607]
[1736289239838,2.14003,3378.9,3378.4,0.29607]
[1736289240031,1.844,3378.9,3378.4,0.29607]
[1736289240539,5.78979745,3378.5,3378.4,0.29607]
[1736289241632,3.68889745,3378.5,3378.4,2.20817]
[1736289242435,2.31500612,3378.8,3378.7,0.29604]
[1736289242632,2.31500612,3378.8,3378.7,3.50384]
[1736289242835,2.31500612,3378.8,3378.4,0.74017]
[1736289242836,2.31500612,3378.8,3378.6,0.29605]
[1736289243140,2.31500612,3378.8,3378.2,5.60210594]
[1736289243430,0.29605,3378.7,3378.3,0.29607]
[1736289243634,2.31500612,3378.8,3378.2,3.2078]
[1736289243635,0.29607,3378.5,3378.2,3.2078]
[1736289243831,1.8478,3378.6,3378.2,3.2078]
[1736289244035,0.29606,3378.5,3378.2,3.2078]
[1736289244236,1.8478,3378.6,3378.2,3.2078]
[1736289244436,0.29609,3378.2,3377.8,0.29611]
[1736289244631,0.2961,3378.1,3377.8,0.29611]
[1736289244827,0.29607,3378.4,3377.8,0.29611]
[1736289245129,5.52280612,3378.5,3377.8,0.29611]
[1736289245130,0.29609,3378.2,3377.8,0.29611]
[1736289246137,2.61109612,3378.2,3377.8,0.29611]
[1736289246338,2.31500612,3378.2,3377.6,5.1892]
[1736289246737,2.31500612,3378.2,3377.9,0.29611]
[1736289247435,2.31500612,3378.1,3377.9,0.29611]
[1736289248830,2.31500612,3378.2,3377.9,0.29611]
[1736289249035,2.31500612,3378.2,3378.0,0.2961]
[1736289249237,2.31500612,3378.2,3377.6,5.1892]
[1736289249738,2.31500612,3378.2,3377.9,0.2961]
[1736289250237,2.61108612,3378.3,3378.0,0.2961]
[1736289251140,0.29608,3378.3,3378.0,0.2961]
[1736289251941,0.29608,3378.3,3377.9,0.2961]
[1736289252239,2.61108612,3378.3,3377.9,0.2961]
[1736289252540,0.29608,3378.2,3377.9,0.2961]
[1736289253032,2.61108612,3378.3,3378.0,0.2961]
[1736289253233,2.61108612,3378.3,3377.7,2.39430594]
[1736289253433,2.61108612,3378.3,3377.9,0.2961]
[1736289253842,0.29608,3378.3,3377.9,0.2961]
[1736289254132,0.29608,3378.3,3378.0,0.2961]
[1736289254539,2.31500612,3378.4,3378.0,0.2961]
[1736289254540,0.29609,3378.2,3378.0,0.2961]
[1736289254837,2.61107612,3378.4,3378.1,0.29609]
[1736289255031,2.31500612,3378.4,3377.7,2.39430594]
[1736289255340,2.31500612,3378.4,3378.3,0.29608]
[1736289256639,2.31500612,3378.4,3378.3,2.69038594]
[1736289257139,2.31500612,3378.9,3378.8,0.29603]
[1736289257935,2.31500612,3378.9,3378.8,3.50383]
[1736289258539,2.78423395,3379.3,3378.8,3.2078]
[1736289258841,2.78423395,3379.3,3379.2,0.296]
[1736289259544,2.31500612,3379.3,3379.2,0.296]
[1736289260039,1.9202,3379.4,3379.2,0.296]
[1736289261135,1.9202,3379.4,3378.8,3.2078]
[1736289261334,1.9202,3379.4,3379.3,0.29599]
[1736289262136,1.9145,3379.7,3379.6,0.29596]
[1736289262337,2.21046,3379.7,3379.4,0.29597]
[1736289262737,0.29596,3379.6,3379.2,3.2078]
[1736289262938,0.29596,3379.6,3379.5,0.29597]
[1736289263135,2.21046,3379.7,3379.5,0.29597]
[1736289263540,2.21046,3379.7,3379.2,3.2078]
[1736289263740,2.21046,3379.7,3379.6,0.29596]
[1736289264046,0.29596,3379.6,3379.5,0.29596]
[1736289264244,1.9145,3379.7,3379.0,2.39430594]
[1736289264456,0.29598,3379.4,3379.3,0.29598]
[1736289264838,0.29598,3379.4,3379.2,0.29599]
[1736289265747,1.9145,3379.7,3379.0,2.39430594]
[1736289266145,0.29597,3379.6,3379.4,0.29597]
[1736289266347,0.29597,3379.6,3379.0,3.13433594]
[1736289266542,0.29597,3379.6,3379.4,0.29597]
[1736289267047,0.29597,3379.6,3379.5,0.29597]
[1736289267547,0.29596,3379.6,3379.5,0.29597]
[1736289268843,2.21046,3379.7,3379.6,0.29596]
[1736289269145,0.29597,3379.6,3379.5,0.29596]
[1736289270442,2.21046,3379.7,3379.6,0.29596]
[1736289270848,0.29597,3379.6,3379.5,0.29597]